[Event "Late-Titled-Tuesday-Blitz-June-18-2024"]
[Site "Chess.com"]
[Date "2024.06.18"]
[Round "3"]
[White "patzer-reloaded"]
[Black "Dr_troll"]
[Result "0-1"]
[WhiteElo "2459"]
[BlackElo "2650"]
[TimeControl "180+1"]
[EndTime "14:29:57 PDT"]
[Termination "Dr_troll won on time"]

1. d3 {[%clk 0:02:51.2]} 1... c5 {[%clk 0:02:59.7]} 2. Nf3 {[%clk 0:02:51.4]}
2... Nc6 {[%clk 0:02:58.6]} 3. g3 {[%clk 0:02:52]} 3... g6 {[%clk 0:02:58]} 4.
Bg2 {[%clk 0:02:52.7]} 4... Bg7 {[%clk 0:02:58.7]} 5. O-O {[%clk 0:02:53.2]}
5... Nf6 {[%clk 0:02:59.2]} 6. c4 {[%clk 0:02:53.7]} 6... O-O {[%clk 0:02:59.8]}
7. Nc3 {[%clk 0:02:54]} 7... d5 {[%clk 0:03:00.2]} 8. cxd5 {[%clk 0:02:53.1]}
8... Nxd5 {[%clk 0:03:00.2]} 9. Nxd5 {[%clk 0:02:54]} 9... Qxd5 {[%clk
0:03:00.4]} 10. Be3 {[%clk 0:02:54.7]} 10... Qd6 {[%clk 0:02:59.7]} 11. Rc1
{[%clk 0:02:53.9]} 11... Nd4 {[%clk 0:02:57.7]} 12. Nxd4 {[%clk 0:02:50.8]}
12... cxd4 {[%clk 0:02:57.6]} 13. Bf4 {[%clk 0:02:50.4]} 13... e5 {[%clk
0:02:57.8]} 14. Bd2 {[%clk 0:02:50.5]} 14... Be6 {[%clk 0:02:56.6]} 15. Qa4
{[%clk 0:02:48]} 15... Qb6 {[%clk 0:02:45.6]} 16. Qb4 {[%clk 0:02:00.8]} 16...
Bg4 {[%clk 0:01:50.1]} 17. Rfe1 {[%clk 0:01:42.5]} 17... Rfc8 {[%clk 0:01:27.8]}
18. Kf1 {[%clk 0:01:42.1]} 18... Bf8 {[%clk 0:01:13.5]} 19. Qxb6 {[%clk
0:01:37.2]} 19... axb6 {[%clk 0:01:14.4]} 20. a3 {[%clk 0:01:34.4]} 20... Rab8
{[%clk 0:00:57.5]} 21. Rxc8 {[%clk 0:01:18.3]} 21... Rxc8 {[%clk 0:00:54.6]} 22.
Rc1 {[%clk 0:01:18.1]} 22... Rxc1+ {[%clk 0:00:55.2]} 23. Bxc1 {[%clk
0:01:17.4]} 23... Bc8 {[%clk 0:00:55.9]} 24. Bg5 {[%clk 0:01:13.5]} 24... b5
{[%clk 0:00:50.1]} 25. Bf6 {[%clk 0:01:08.7]} 25... Bd6 {[%clk 0:00:48.4]} 26.
Ke1 {[%clk 0:00:33.7]} 26... Kf8 {[%clk 0:00:38.5]} 27. Kd1 {[%clk 0:00:31.7]}
27... Ke8 {[%clk 0:00:38.3]} 28. Kc2 {[%clk 0:00:31.2]} 28... Kd7 {[%clk
0:00:35.6]} 29. Bh3+ {[%clk 0:00:12.4]} 29... Kc7 {[%clk 0:00:35.5]} 30. Bxc8
{[%clk 0:00:12.6]} 30... Kxc8 {[%clk 0:00:36.4]} 31. Kb3 {[%clk 0:00:11.1]}
31... Kd7 {[%clk 0:00:36.8]} 32. f3 {[%clk 0:00:05.2]} 32... Ke6 {[%clk
0:00:35.9]} 33. Bg5 {[%clk 0:00:05]} 33... f6 {[%clk 0:00:30.1]} 34. Bd2 {[%clk
0:00:05]} 34... Kd5 {[%clk 0:00:30.1]} 35. Bb4 {[%clk 0:00:04.6]} 35... Bc7
{[%clk 0:00:26.5]} 36. Be7 {[%clk 0:00:03.3]} 36... f5 {[%clk 0:00:26.5]} 37.
Kb4 {[%clk 0:00:02.6]} 37... Kc6 {[%clk 0:00:26.6]} 38. g4 {[%clk 0:00:01.4]}
38... h5 {[%clk 0:00:22.5]} 39. gxh5 {[%clk 0:00:01.1]} 39... gxh5 {[%clk
0:00:23.1]} 40. h3 {[%clk 0:00:01.8]} 40... Bb6 {[%clk 0:00:19.6]} 41. Bf8
{[%clk 0:00:02.7]} 41... Bd8 {[%clk 0:00:18.7]} 42. Bg7 {[%clk 0:00:01.9]} 42...
Be7+ {[%clk 0:00:18.2]} 43. Kb3 {[%clk 0:00:02.8]} 43... Kd5 {[%clk 0:00:17.5]}
44. Bh6 {[%clk 0:00:03]} 44... e4 {[%clk 0:00:17.5]} 45. Bd2 {[%clk 0:00:02.9]}
45... Ke5 {[%clk 0:00:11.1]} 46. Bc1 {[%clk 0:00:02.4]} 46... e3 {[%clk
0:00:10.5]} 47. Kc2 {[%clk 0:00:01.7]} 47... Kf4 {[%clk 0:00:10.5]} 0-1

[Event "Late-Titled-Tuesday-Blitz-June-18-2024"]
[Site "Chess.com"]
[Date "2024.06.18"]
[Round "3"]
[White "Roland_Garros_2024"]
[Black "Roachelley"]
[Result "0-1"]
[WhiteElo "2218"]
[BlackElo "2543"]
[TimeControl "180+1"]
[EndTime "14:29:57 PDT"]
[Termination "Roachelley won by checkmate"]

1. e4 {[%clk 0:03:00.9]} 1... c5 {[%clk 0:02:58.7]} 2. Nf3 {[%clk 0:03:01.4]}
2... d6 {[%clk 0:02:57.9]} 3. d4 {[%clk 0:03:01.9]} 3... cxd4 {[%clk 0:02:58.7]}
4. Nxd4 {[%clk 0:03:02.8]} 4... Nf6 {[%clk 0:02:59.2]} 5. Nc3 {[%clk 0:03:03.4]}
5... Nc6 {[%clk 0:02:59.5]} 6. Bg5 {[%clk 0:03:02.8]} 6... e6 {[%clk 0:03:00.1]}
7. Qd2 {[%clk 0:03:02.9]} 7... a6 {[%clk 0:03:00.4]} 8. Nxc6 {[%clk 0:03:02.7]}
8... bxc6 {[%clk 0:03:00.5]} 9. O-O-O {[%clk 0:03:03.6]} 9... Be7 {[%clk
0:03:00.9]} 10. Bxf6 {[%clk 0:03:03.5]} 10... gxf6 {[%clk 0:03:01.8]} 11. Bc4
{[%clk 0:03:03.8]} 11... Bb7 {[%clk 0:03:01.7]} 12. Bb3 {[%clk 0:03:03.9]} 12...
Qc7 {[%clk 0:03:01.5]} 13. Kb1 {[%clk 0:03:04.4]} 13... d5 {[%clk 0:03:01.6]}
14. exd5 {[%clk 0:03:01.9]} 14... cxd5 {[%clk 0:03:01.5]} 15. Rhe1 {[%clk
0:02:54.8]} 15... O-O-O {[%clk 0:03:00]} 16. Qe2 {[%clk 0:02:40.2]} 16... Bb4
{[%clk 0:02:55.5]} 17. Rd4 {[%clk 0:02:12.3]} 17... Bxc3 {[%clk 0:02:50.1]} 18.
bxc3 {[%clk 0:02:13.2]} 18... Qxc3 {[%clk 0:02:50]} 19. Rd3 {[%clk 0:02:07]}
19... Qa5 {[%clk 0:02:49.5]} 20. Kb2 {[%clk 0:02:07]} 20... Kb8 {[%clk 0:02:38]}
21. Qf3 {[%clk 0:02:05.9]} 21... f5 {[%clk 0:02:34.7]} 22. Qf4+ {[%clk
0:02:03.3]} 22... Qc7 {[%clk 0:02:32.2]} 23. Qb4 {[%clk 0:02:03.2]} 23... Rhg8
{[%clk 0:02:30.4]} 24. g3 {[%clk 0:02:02.2]} 24... Rg4 {[%clk 0:02:27.2]} 25. f4
{[%clk 0:01:42.5]} 25... Rgg8 {[%clk 0:02:08.5]} 26. Ba4 {[%clk 0:01:22.3]}
26... Ka8 {[%clk 0:01:54.8]} 27. Rc3 {[%clk 0:01:17]} 27... Qb8 {[%clk
0:01:42.5]} 28. Qb6 {[%clk 0:01:05.6]} 28... Rd6 {[%clk 0:01:38.8]} 29. Qc7
{[%clk 0:00:55.4]} 29... Bc6+ {[%clk 0:01:25.8]} 30. Qxb8+ {[%clk 0:00:47.3]}
30... Rxb8+ {[%clk 0:01:26.7]} 31. Bb3 {[%clk 0:00:47.6]} 31... d4 {[%clk
0:01:20.2]} 32. Rc5 {[%clk 0:00:38]} 32... Be4 {[%clk 0:00:55.6]} 33. Rd1 {[%clk
0:00:30.3]} 33... Rbd8 {[%clk 0:00:51.6]} 34. Rc7 {[%clk 0:00:27.8]} 34... R8d7
{[%clk 0:00:49.3]} 35. Rc4 {[%clk 0:00:18.9]} 35... d3 {[%clk 0:00:49.1]} 36.
cxd3 {[%clk 0:00:18.5]} 36... Rxd3 {[%clk 0:00:49.1]} 37. Rxd3 {[%clk
0:00:17.1]} 37... Bxd3 {[%clk 0:00:49.2]} 38. Rc8+ {[%clk 0:00:16.6]} 38... Kb7
{[%clk 0:00:49.1]} 39. Rh8 {[%clk 0:00:17.5]} 39... Bb5 {[%clk 0:00:38.5]} 40.
Rxh7 {[%clk 0:00:16.2]} 40... a5 {[%clk 0:00:39.1]} 41. a4 {[%clk 0:00:12.4]}
41... Bc6 {[%clk 0:00:38.5]} 42. h4 {[%clk 0:00:11]} 42... Kb6 {[%clk
0:00:37.2]} 43. Rg7 {[%clk 0:00:10.4]} 43... Kc5 {[%clk 0:00:36.7]} 44. h5
{[%clk 0:00:09.5]} 44... Kb4 {[%clk 0:00:36]} 45. Bc2 {[%clk 0:00:06.6]} 45...
Rd2 {[%clk 0:00:33]} 46. Kc1 {[%clk 0:00:06.7]} 46... Kc3 {[%clk 0:00:32.3]} 47.
Bd1 {[%clk 0:00:05]} 47... Ra2 {[%clk 0:00:21.3]} 48. Kb1 {[%clk 0:00:05]} 48...
Ra3 {[%clk 0:00:18.4]} 49. Rxf7 {[%clk 0:00:04.3]} 49... Be4+ {[%clk 0:00:18.2]}
50. Kc1 {[%clk 0:00:01.3]} 50... Ra1# {[%clk 0:00:18.1]} 0-1

[Event "Late-Titled-Tuesday-Blitz-June-18-2024"]
[Site "Chess.com"]
[Date "2024.06.18"]
[Round "3"]
[White "AlbusSevresPotter"]
[Black "unbreakablepawn35"]
[Result "0-1"]
[WhiteElo "2609"]
[BlackElo "2451"]
[TimeControl "180+1"]
[EndTime "14:29:59 PDT"]
[Termination "unbreakablepawn35 won on time"]

1. e4 {[%clk 0:03:00.9]} 1... d5 {[%clk 0:02:59.7]} 2. exd5 {[%clk 0:03:01.7]}
2... Qxd5 {[%clk 0:03:00.3]} 3. Nc3 {[%clk 0:02:59.3]} 3... Qd8 {[%clk
0:02:59.9]} 4. d4 {[%clk 0:02:57.6]} 4... Nf6 {[%clk 0:03:00.1]} 5. Nf3 {[%clk
0:02:55.3]} 5... Bg4 {[%clk 0:03:00.5]} 6. h3 {[%clk 0:02:54]} 6... Bxf3 {[%clk
0:02:59.9]} 7. Qxf3 {[%clk 0:02:54.9]} 7... c6 {[%clk 0:03:00.4]} 8. Be3 {[%clk
0:02:49.4]} 8... e6 {[%clk 0:03:00.6]} 9. Ne4 {[%clk 0:02:42.2]} 9... Be7 {[%clk
0:02:50]} 10. c3 {[%clk 0:02:39.5]} 10... Nbd7 {[%clk 0:02:48.7]} 11. Bd3 {[%clk
0:02:32.8]} 11... Nxe4 {[%clk 0:02:48.2]} 12. Bxe4 {[%clk 0:02:31]} 12... Nf6
{[%clk 0:02:48.5]} 13. Bd3 {[%clk 0:02:30.1]} 13... O-O {[%clk 0:02:46.2]} 14.
O-O {[%clk 0:02:28.6]} 14... c5 {[%clk 0:02:45.9]} 15. Rfd1 {[%clk 0:02:10.4]}
15... cxd4 {[%clk 0:02:21.5]} 16. Bxd4 {[%clk 0:02:11.3]} 16... Qc7 {[%clk
0:02:14.5]} 17. Rd2 {[%clk 0:02:03.2]} 17... Rad8 {[%clk 0:02:00.5]} 18. Rad1
{[%clk 0:01:40.4]} 18... Rd5 {[%clk 0:01:41.3]} 19. Bxf6 {[%clk 0:01:08.8]}
19... Bxf6 {[%clk 0:01:40.6]} 20. Be4 {[%clk 0:01:09.5]} 20... Rxd2 {[%clk
0:01:36.6]} 21. Rxd2 {[%clk 0:01:10.2]} 21... b6 {[%clk 0:01:30]} 22. g3 {[%clk
0:01:10.3]} 22... Rd8 {[%clk 0:01:28]} 23. Re2 {[%clk 0:00:59.9]} 23... Qc5
{[%clk 0:01:14.8]} 24. Kg2 {[%clk 0:00:59.9]} 24... Bg5 {[%clk 0:01:02.1]} 25.
h4 {[%clk 0:00:58.9]} 25... Bh6 {[%clk 0:00:51.1]} 26. Bc2 {[%clk 0:00:56.7]}
26... g6 {[%clk 0:00:46.7]} 27. Bb3 {[%clk 0:00:55.1]} 27... Bg7 {[%clk
0:00:42.7]} 28. Qb7 {[%clk 0:00:55]} 28... a5 {[%clk 0:00:32.6]} 29. a4 {[%clk
0:00:55.3]} 29... Qd6 {[%clk 0:00:30.4]} 30. h5 {[%clk 0:00:51.7]} 30... Rd7
{[%clk 0:00:27.9]} 31. Qa8+ {[%clk 0:00:49.7]} 31... Rd8 {[%clk 0:00:27.5]} 32.
Qb7 {[%clk 0:00:50.3]} 32... Rd7 {[%clk 0:00:27.5]} 33. Qf3 {[%clk 0:00:50.5]}
33... Rc7 {[%clk 0:00:20.2]} 34. Re4 {[%clk 0:00:45.9]} 34... Qc6 {[%clk
0:00:18.8]} 35. Kg1 {[%clk 0:00:39.8]} 35... g5 {[%clk 0:00:17.2]} 36. h6 {[%clk
0:00:17]} 36... Bxh6 {[%clk 0:00:17.2]} 37. Bc2 {[%clk 0:00:17.6]} 37... f5
{[%clk 0:00:11.8]} 38. Qh5 {[%clk 0:00:06]} 38... fxe4 {[%clk 0:00:09.5]} 39.
Qxh6 {[%clk 0:00:06.6]} 39... Qd5 {[%clk 0:00:08.9]} 40. Qf6 {[%clk 0:00:05]}
40... Rf7 {[%clk 0:00:08.8]} 41. Qh6 {[%clk 0:00:04.4]} 41... Qd2 {[%clk
0:00:07.9]} 42. Qxg5+ {[%clk 0:00:04.6]} 42... Qxg5 {[%clk 0:00:07.6]} 0-1

[Event "Late-Titled-Tuesday-Blitz-June-18-2024"]
[Site "Chess.com"]
[Date "2024.06.18"]
[Round "3"]
[White "Dolphin_2010"]
[Black "HansOnTwitch"]
[Result "1/2-1/2"]
[WhiteElo "2791"]
[BlackElo "3129"]
[TimeControl "180+1"]
[EndTime "14:30:00 PDT"]
[Termination "Game drawn by repetition"]

1. d4 {[%clk 0:01:51.7]} 1... Nf6 {[%clk 0:02:59.8]} 2. Bg5 {[%clk 0:01:51.3]}
2... d5 {[%clk 0:02:57.1]} 3. Bxf6 {[%clk 0:01:51.4]} 3... gxf6 {[%clk
0:02:57.2]} 4. e3 {[%clk 0:01:50.2]} 4... c5 {[%clk 0:02:57.9]} 5. dxc5 {[%clk
0:01:50.7]} 5... Nc6 {[%clk 0:02:58.4]} 6. Nf3 {[%clk 0:01:50.4]} 6... e6 {[%clk
0:02:58.6]} 7. c4 {[%clk 0:01:50.9]} 7... dxc4 {[%clk 0:02:57.7]} 8. Qxd8+
{[%clk 0:01:50.6]} 8... Kxd8 {[%clk 0:02:57.5]} 9. Bxc4 {[%clk 0:01:51.5]} 9...
Bxc5 {[%clk 0:02:57.7]} 10. Nc3 {[%clk 0:01:50.3]} 10... Ke7 {[%clk 0:02:57.1]}
11. a3 {[%clk 0:01:50]} 11... a6 {[%clk 0:02:56.5]} 12. Rc1 {[%clk 0:01:47.4]}
12... Ba7 {[%clk 0:02:54.8]} 13. Ba2 {[%clk 0:01:33.9]} 13... Bd7 {[%clk
0:02:50.4]} 14. O-O {[%clk 0:01:33.8]} 14... Rhd8 {[%clk 0:02:44.5]} 15. Rfd1
{[%clk 0:01:34]} 15... Be8 {[%clk 0:02:40.3]} 16. Rxd8 {[%clk 0:01:34.2]} 16...
Rxd8 {[%clk 0:02:41.2]} 17. Kf1 {[%clk 0:01:32]} 17... f5 {[%clk 0:02:37.5]} 18.
Rd1 {[%clk 0:01:29.4]} 18... Rc8 {[%clk 0:02:35.8]} 19. g3 {[%clk 0:01:23.2]}
19... f6 {[%clk 0:02:35]} 20. Bc4 {[%clk 0:01:00.4]} 20... Na5 {[%clk
0:02:29.3]} 21. Be2 {[%clk 0:00:59.9]} 21... Nc4 {[%clk 0:02:24.2]} 22. Bxc4
{[%clk 0:00:44.1]} 22... Rxc4 {[%clk 0:02:24.1]} 23. Nd4 {[%clk 0:00:34.2]}
23... Bd7 {[%clk 0:02:18.4]} 24. Ke1 {[%clk 0:00:28.2]} 24... Rc8 {[%clk
0:02:15.7]} 25. h4 {[%clk 0:00:24.9]} 25... b5 {[%clk 0:02:14]} 26. Nde2 {[%clk
0:00:22.7]} 26... Bc6 {[%clk 0:02:12.8]} 27. Nd4 {[%clk 0:00:22.7]} 27... Bb7
{[%clk 0:02:11]} 28. Rd2 {[%clk 0:00:18.2]} 28... Rc4 {[%clk 0:02:06]} 29. Nce2
{[%clk 0:00:11.3]} 29... Bc8 {[%clk 0:01:57.5]} 30. Rc2 {[%clk 0:00:10.8]} 30...
Rxc2 {[%clk 0:01:57.5]} 31. Nxc2 {[%clk 0:00:11.1]} 31... e5 {[%clk 0:01:58.1]}
32. Nb4 {[%clk 0:00:10.1]} 32... Bb7 {[%clk 0:01:58.4]} 33. Nc3 {[%clk
0:00:09.7]} 33... Kd6 {[%clk 0:01:59]} 34. Nd3 {[%clk 0:00:09]} 34... Bb6 {[%clk
0:01:56.7]} 35. Kd2 {[%clk 0:00:07.8]} 35... Bc6 {[%clk 0:01:56.4]} 36. Nb4
{[%clk 0:00:07.7]} 36... Bb7 {[%clk 0:01:57]} 37. Nd3 {[%clk 0:00:08.4]} 37...
Bc8 {[%clk 0:01:56.7]} 38. Nb4 {[%clk 0:00:08.4]} 38... Bd8 {[%clk 0:01:51.6]}
39. e4 {[%clk 0:00:08]} 39... a5 {[%clk 0:01:27.9]} 40. Nd3 {[%clk 0:00:08]}
40... fxe4 {[%clk 0:01:28.3]} 41. Nxe4+ {[%clk 0:00:08.1]} 41... Kc6 {[%clk
0:01:26.9]} 42. b4 {[%clk 0:00:07.7]} 42... a4 {[%clk 0:01:26.8]} 43. Nc3 {[%clk
0:00:08.1]} 43... Bb6 {[%clk 0:01:25.5]} 44. f4 {[%clk 0:00:08.3]} 44... exf4
{[%clk 0:01:24.2]} 45. Nxf4 {[%clk 0:00:08.8]} 45... Bd4 {[%clk 0:01:22.4]} 46.
Nfe2 {[%clk 0:00:08.5]} 46... Be5 {[%clk 0:01:22.8]} 47. Ke3 {[%clk 0:00:08.9]}
47... Bd7 {[%clk 0:01:19.3]} 48. Nd4+ {[%clk 0:00:09]} 48... Kb6 {[%clk
0:01:20.1]} 49. Nd5+ {[%clk 0:00:09.4]} 49... Kb7 {[%clk 0:01:20.2]} 50. Nf4
{[%clk 0:00:09.6]} 50... Kc7 {[%clk 0:01:19.6]} 51. Nd5+ {[%clk 0:00:09.3]}
51... Kd6 {[%clk 0:01:18.6]} 52. Nf4 {[%clk 0:00:09.5]} 52... f5 {[%clk
0:01:12.9]} 53. Kd3 {[%clk 0:00:08.9]} 53... Bf6 {[%clk 0:01:10.6]} 54. Ke3
{[%clk 0:00:09.2]} 54... Ke5 {[%clk 0:01:08.6]} 55. Nf3+ {[%clk 0:00:07]} 55...
Kd6 {[%clk 0:01:09]} 56. Nd4 {[%clk 0:00:07.4]} 56... Bd8 {[%clk 0:01:09.7]} 57.
Kd3 {[%clk 0:00:07.5]} 57... Bb6 {[%clk 0:01:09.1]} 58. Nde2 {[%clk 0:00:05.1]}
58... Bc6 {[%clk 0:01:07.2]} 59. Nd4 {[%clk 0:00:05.4]} 59... Bd7 {[%clk
0:01:05.1]} 60. Nf3 {[%clk 0:00:05.7]} 60... Bf2 {[%clk 0:01:03.7]} 61. Ne2
{[%clk 0:00:06.3]} 61... Kd5 {[%clk 0:00:57.8]} 62. Nf4+ {[%clk 0:00:05.5]}
62... Kd6 {[%clk 0:00:57.7]} 63. Ne2 {[%clk 0:00:06.4]} 63... Bc6 {[%clk
0:00:55.3]} 64. Nfd4 {[%clk 0:00:06.1]} 64... Bd7 {[%clk 0:00:45.2]} 65. Nf3
{[%clk 0:00:06.1]} 1/2-1/2

[Event "Late-Titled-Tuesday-Blitz-June-18-2024"]
[Site "Chess.com"]
[Date "2024.06.18"]
[Round "3"]
[White "SpeedofLight0"]
[Black "HowTo2Draw"]
[Result "1-0"]
[WhiteElo "3029"]
[BlackElo "2522"]
[TimeControl "180+1"]
[EndTime "14:30:02 PDT"]
[Termination "SpeedofLight0 won on time"]

1. c4 {[%clk 0:03:00.9]} 1... e6 {[%clk 0:02:54.3]} 2. g3 {[%clk 0:02:59.3]}
2... d5 {[%clk 0:02:54.5]} 3. Bg2 {[%clk 0:02:59.1]} 3... d4 {[%clk 0:02:54.7]}
4. Nf3 {[%clk 0:02:57.6]} 4... Nc6 {[%clk 0:02:54.1]} 5. O-O {[%clk 0:02:55.9]}
5... Nf6 {[%clk 0:02:54.5]} 6. d3 {[%clk 0:02:47.3]} 6... Be7 {[%clk 0:02:54]}
7. Na3 {[%clk 0:02:25.9]} 7... O-O {[%clk 0:02:52.7]} 8. Nc2 {[%clk 0:02:25.4]}
8... a5 {[%clk 0:02:51.1]} 9. b3 {[%clk 0:02:25.2]} 9... e5 {[%clk 0:02:50.7]}
10. Bg5 {[%clk 0:02:20.9]} 10... Nd7 {[%clk 0:02:50.8]} 11. Bxe7 {[%clk
0:02:18.6]} 11... Qxe7 {[%clk 0:02:51.7]} 12. a3 {[%clk 0:02:19]} 12... Nc5
{[%clk 0:02:44.5]} 13. Nd2 {[%clk 0:02:18.4]} 13... Bf5 {[%clk 0:02:37.7]} 14.
Bxc6 {[%clk 0:02:06.9]} 14... bxc6 {[%clk 0:02:38.6]} 15. f3 {[%clk 0:02:07.5]}
15... Bg6 {[%clk 0:02:23.5]} 16. Rb1 {[%clk 0:02:02.1]} 16... f5 {[%clk
0:02:20.1]} 17. Qe1 {[%clk 0:01:54.7]} 17... Rae8 {[%clk 0:02:16.5]} 18. Qf2
{[%clk 0:01:51]} 18... Rd8 {[%clk 0:01:44.6]} 19. b4 {[%clk 0:01:18.5]} 19...
Na4 {[%clk 0:01:38.6]} 20. Nb3 {[%clk 0:01:15.3]} 20... Nc3 {[%clk 0:01:36]} 21.
Rbe1 {[%clk 0:01:10.4]} 21... axb4 {[%clk 0:01:24.7]} 22. axb4 {[%clk
0:01:09.1]} 22... Ra8 {[%clk 0:01:20.6]} 23. Ra1 {[%clk 0:01:07.9]} 23... Na2
{[%clk 0:01:08.7]} 24. Qe1 {[%clk 0:00:54.2]} 24... Rfb8 {[%clk 0:01:07.2]} 25.
Qd2 {[%clk 0:00:53.5]} 25... h5 {[%clk 0:00:46.4]} 26. f4 {[%clk 0:00:53.1]}
26... h4 {[%clk 0:00:39.6]} 27. fxe5 {[%clk 0:00:52.5]} 27... hxg3 {[%clk
0:00:39]} 28. hxg3 {[%clk 0:00:53.4]} 28... Qxe5 {[%clk 0:00:38.2]} 29. Rf4
{[%clk 0:00:52.8]} 29... Nc3 {[%clk 0:00:34.7]} 30. Rxa8 {[%clk 0:00:44.8]}
30... Rxa8 {[%clk 0:00:28.8]} 31. Nbxd4 {[%clk 0:00:44.6]} 31... Nb1 {[%clk
0:00:18.4]} 32. Qc1 {[%clk 0:00:28.9]} 32... Nc3 {[%clk 0:00:18.5]} 33. Qe1
{[%clk 0:00:29.4]} 33... c5 {[%clk 0:00:11.4]} 34. bxc5 {[%clk 0:00:23.2]} 34...
Na4 {[%clk 0:00:10.9]} 35. c6 {[%clk 0:00:20.6]} 35... Nc5 {[%clk 0:00:11]} 36.
Qf2 {[%clk 0:00:19.3]} 36... Ra2 {[%clk 0:00:09.4]} 37. Qe3 {[%clk 0:00:12.9]}
37... Qxe3+ {[%clk 0:00:08.7]} 38. Nxe3 {[%clk 0:00:13.8]} 38... Ra1+ {[%clk
0:00:07]} 39. Kf2 {[%clk 0:00:13.7]} 39... Ra2 {[%clk 0:00:03.8]} 40. Kf1 {[%clk
0:00:10.7]} 40... Na4 {[%clk 0:00:04]} 41. Nd5 {[%clk 0:00:09.9]} 41... Bf7
{[%clk 0:00:02.8]} 42. Nxc7 {[%clk 0:00:08.6]} 42... Nc3 {[%clk 0:00:02.3]} 43.
Ncb5 {[%clk 0:00:07.9]} 43... Ra1+ {[%clk 0:00:02]} 44. Kg2 {[%clk 0:00:08.5]}
44... Nd1 {[%clk 0:00:01.5]} 45. Nxf5 {[%clk 0:00:08.5]} 45... Nb2 {[%clk
0:00:02.3]} 46. c7 {[%clk 0:00:08.4]} 46... g5 {[%clk 0:00:02.9]} 47. c8=Q+
{[%clk 0:00:08]} 1-0

[Event "Late-Titled-Tuesday-Blitz-June-18-2024"]
[Site "Chess.com"]
[Date "2024.06.18"]
[Round "3"]
[White "SRob2003"]
[Black "szachmistrz2500"]
[Result "0-1"]
[WhiteElo "2699"]
[BlackElo "2504"]
[TimeControl "180+1"]
[EndTime "14:30:02 PDT"]
[Termination "szachmistrz2500 won by resignation"]

1. e4 {[%clk 0:03:00.9]} 1... c6 {[%clk 0:02:59.1]} 2. Ne2 {[%clk 0:02:45.4]}
2... d5 {[%clk 0:03:00]} 3. e5 {[%clk 0:02:44.8]} 3... c5 {[%clk 0:02:42.3]} 4.
d4 {[%clk 0:02:44.7]} 4... Nc6 {[%clk 0:02:42]} 5. dxc5 {[%clk 0:02:42.3]} 5...
Nxe5 {[%clk 0:02:39.2]} 6. Nd4 {[%clk 0:02:40.5]} 6... Nf6 {[%clk 0:02:34.5]} 7.
b4 {[%clk 0:02:34]} 7... e6 {[%clk 0:02:26.1]} 8. f4 {[%clk 0:02:29.5]} 8... Nc6
{[%clk 0:02:25.1]} 9. c3 {[%clk 0:02:28.3]} 9... Be7 {[%clk 0:02:20.3]} 10. Bd3
{[%clk 0:02:26.7]} 10... O-O {[%clk 0:02:08.4]} 11. O-O {[%clk 0:02:25.9]} 11...
a5 {[%clk 0:01:34.8]} 12. b5 {[%clk 0:02:25.2]} 12... Nb8 {[%clk 0:01:32.8]} 13.
Ba3 {[%clk 0:02:25.3]} 13... Nbd7 {[%clk 0:01:32.7]} 14. c6 {[%clk 0:02:21]}
14... Nc5 {[%clk 0:01:32.4]} 15. Bc2 {[%clk 0:02:19.9]} 15... Nce4 {[%clk
0:01:28.2]} 16. Bc1 {[%clk 0:01:19.1]} 16... bxc6 {[%clk 0:01:09.6]} 17. Nxc6
{[%clk 0:01:12.4]} 17... Qb6+ {[%clk 0:01:09.4]} 18. Kh1 {[%clk 0:01:07.6]}
18... Bc5 {[%clk 0:01:09.3]} 19. Nd4 {[%clk 0:00:49.4]} 19... Bxd4 {[%clk
0:00:58]} 20. Qxd4 {[%clk 0:00:48.3]} 20... Qxb5 {[%clk 0:00:58.2]} 21. Bd3
{[%clk 0:00:48.3]} 21... Qc6 {[%clk 0:00:54.8]} 22. Ba3 {[%clk 0:00:45.7]} 22...
Re8 {[%clk 0:00:47.7]} 23. Rf3 {[%clk 0:00:19.8]} 23... Ba6 {[%clk 0:00:45.7]}
24. Bc2 {[%clk 0:00:19.6]} 24... Rec8 {[%clk 0:00:33.4]} 25. h3 {[%clk
0:00:18.2]} 25... Qc4 {[%clk 0:00:28]} 26. Qxc4 {[%clk 0:00:04.7]} 26... Rxc4
{[%clk 0:00:27.1]} 27. Bd3 {[%clk 0:00:03.1]} 27... Rcc8 {[%clk 0:00:21.7]} 28.
Bc2 {[%clk 0:00:03.5]} 28... Rab8 {[%clk 0:00:14.7]} 29. Be7 {[%clk 0:00:02]}
29... h5 {[%clk 0:00:11.4]} 30. Bb3 {[%clk 0:00:02.5]} 30... h4 {[%clk
0:00:10.9]} 31. Bxf6 {[%clk 0:00:02]} 31... Nxf6 {[%clk 0:00:09.9]} 32. Na3
{[%clk 0:00:01.8]} 32... Ne4 {[%clk 0:00:08.7]} 33. Rc1 {[%clk 0:00:02.4]} 33...
Ng3+ {[%clk 0:00:07]} 34. Kh2 {[%clk 0:00:02.2]} 34... Bb7 {[%clk 0:00:05]} 35.
Nb1 {[%clk 0:00:02]} 35... d4 {[%clk 0:00:05.3]} 36. Rf2 {[%clk 0:00:02]} 36...
d3 {[%clk 0:00:04.9]} 37. Rd2 {[%clk 0:00:01.7]} 37... Be4 {[%clk 0:00:04.9]}
38. c4 {[%clk 0:00:02]} 38... Rb6 {[%clk 0:00:04.5]} 39. Re1 {[%clk 0:00:02.5]}
39... f5 {[%clk 0:00:04.5]} 40. Nc3 {[%clk 0:00:03.2]} 40... Rd6 {[%clk
0:00:03.7]} 41. Na4 {[%clk 0:00:03.6]} 41... Bc6 {[%clk 0:00:02.8]} 42. Kg1
{[%clk 0:00:04.2]} 42... Ne4 {[%clk 0:00:03.1]} 43. Rdd1 {[%clk 0:00:04.9]}
43... d2 {[%clk 0:00:03.6]} 44. Re2 {[%clk 0:00:05.4]} 44... Bxa4 {[%clk
0:00:03.9]} 45. Bxa4 {[%clk 0:00:05.5]} 45... Rxc4 {[%clk 0:00:04.5]} 46. Bb3
{[%clk 0:00:05.8]} 46... Rc1 {[%clk 0:00:04.5]} 47. Kh2 {[%clk 0:00:06]} 47...
Rxd1 {[%clk 0:00:04.5]} 48. Bxd1 {[%clk 0:00:06.9]} 48... Nc3 {[%clk 0:00:04.5]}
0-1